{"text_format":"2","workbook":"xlsx","n_sheets":2,"sheets":["DIV 01","Summary"],"not_rendered":{"charts":0,"images":0,"macros":0,"external_links":1,"defined_names":2,"comments":0,"pivot_tables":0},"unopened":[],"bounds":{"document_bytes":16777216,"sheet_cells":100000,"run_cost":"one","rows_first":2000,"rows_last":500,"rows_between":2000,"halvings":0,"cell_chars":16384,"cell_head_chars":4096},"cells_cut":0,"cells_raw":0,"read":"whole","date_system":"1900"}

{"sheet":"DIV 01","index":0,"n_rows":362,"n_cols":3,"rows_kept":362,"cut":false,"hidden":false,"merged":[[0,0,0,3],[1,0,1,3]]}
["DIVISION 01"]
["GENERAL REQUIREMENTS"]
[]
["Item","Description","Amount"]
[null,null,"US$"]
[]
[null,"GENERAL NOTES"]
[]
["A","Tenderers are to comply exactly with the pricing requirement of preliminaries, as presented hereafter",0]
[]
["B","These General Requirements are applicable to all works weather Structural, Architectural and Electro-Mechanical.",0]
[]
["C","If the Contractor wishes to price any of the items contained herein then each such item, clause, or sub-clause must be individually priced. The Contractor shall not enter any lump sums covering more than one item, clause and sub-clause.",0]
[]
["D","Monthly payments for General Requirements items shall only be made for those costs which are properly due and for which the Contractor has inserted prices against in this Section.  Payment for all time related items will only start from the date of the Engineer’s approval for the particular items in this Section.",0]
[]
["E","The Tenderer shall, during his study of the Tender, address his queries (if any) to the Engineer, who will study and clarify all such queries. Should the Tenderer during his study of the Tender, consider that there is any shortage, error or inconsistency in the Contract Documents, which would affect the rates of his Tender, or the value of the Works, the Tenderer must have all such points clarified by the Engineer before submitting his Tender.",0]
[]
[null,"CONDITIONS OF CONTRACT"]
[]
[null,"Insurances"]
[]
["A","The Contractor shall provide and maintain Insurances as stipulated in the Conditions of Contract. The Contractor shall include herein for all costs related to Insurances."]
[]
[]
[null,"To Collection   US$",{"$f":"SUM(C9:C23)","v":0}]
[]
[null,"CONDITIONS OF CONTRACT (CONT'D)"]
[]
["B","The Contractor shall do his own investigations to identify the locations of existing utilities and  their condition, and do the necessary diversions, all in accordance with Division 1 clause 1-2 of the Specifications. Utility identification shall include all necessary expenses, fees, taxes, materials, labor, equipment and workmanship and whatsoever necessary to identify and localize existing utilities on, under and over the site (telephone, electricity, potable water, drainage, sewer and others). The works shall include but not limited to the coordination with all concerned authorities, investigation, identification and localization of all underground existing utilities and amenities using electronic, sonar detection methods by continuous Geophysical Surveys by Ground Penetrating Radar (GPR) survey along the full length of all proposed pipe line to determine locations and depths of utilities services and under ground discontinuity, and hand dug trial pits and trial trench not exceeding 3m depth or other non-destructive way."]
["C","Topographical Survey\nThe price shall include all necessary works for the execution of a complete site topographical survey for verification of design levels, quantity measurements, design of permanent and temporary structures and the submission of plans showing all the road details including locations, levels and characteristics of existing utilities services and neighboring buildings as specified and as directed by the Engineer."]
["D","Shop Drawings \nThe rate shall include but not limited to the following works:\n- Total compliance with the carried out site topographic survey, utilities identification (including pits) and pavement coring pits.\n- Verification of design levels indicated in tender drawings.\n- Design verification and calculation according to the new outcome of all survey and investigation's results.\n- Shop drawings submittal for all proposed works including any other works under the contract, modification and updating of all tender drawings as required.\nAll execution drawings (scale 1/1000 and as requested by the Engineer), calculations shall be submitted for the Engineer's approval."]
["E","As Built Drawings \nThe rate shall include all necessary expenses, fees, taxes, materials, labor, equipment and workmanship and whatsoever necessary to submit complete detailed As-Built Drawings for the project to the satisfaction of the Engineer and relevant Authorities. The works shall include but not limited to the verification of revised tender and approved shop drawings, implementation of changes incurred on approved shop drawings due to site conditions as consented and instructed by the Engineer and the preparation and submittal of the aforesaid in three hard copies and soft copies completed within a period of 4 weeks following the completion date."]
[]
[null,"To Collection   US$",{"$f":"SUM(C30:C33)","v":0}]
[]
[null,"CONDITIONS OF CONTRACT (CONT'D)"]
[]
["F","Coordination with other Contractor"]
[]
[null,"The Contractor has the affirmative duty to coordinate its work with that of all other contractors. The Contractor shall carry out the Works in a state of forwardness promptly, efficiently, and a speed as determined by the Schedule of Works such that it will not interfere with the work of other contractors. Interference due to lack of coordination will be the responsibility of the Contractor. Potential conflicts and delays shall be aggressively pursued with the other contractors before they affect the progress of construction. The duration of such coordination will be limited to 24 months",0]
[]
[null,"Other Obligations"]
[]
["G","The Contractor shall comply in all respects with the Conditions of Contract and shall describe, list below and price any obligation for which he has not allowed elsewhere and wishes to price separately:-"]
[]
[]
[]
[null,"…………………………………………………………………………….",0]
[]
[null,"…………………………………………………………………………….",0]
[]
[null,"…………………………………………………………………………….",0]
[]
[null,"…………………………………………………………………………….",0]
[]
[null,"…………………………………………………………………………….",0]
[]
[null,"…………………………………………………………………………….",0]
[]
[]
[null,"To Collection   US$",{"$f":"SUM(C39:C59)","v":0}]
[]
[null,"SPECIFICATIONS"]
[]
[null,"General"]
[]
["A","The Contractor shall comply with all the requirements and obligations contained in the Specifications and in particular the requirements of Division 1 as follows:-"]
[null,"01010  Summary"]
[null," a.     Scope of Work",0]
[null," b     General Requirements to be implemented by Contractor whether indicated on drawings or not",0]
[null," c.     Performance and Standards",0]
[null," d.     Work Covered by the Contract documents",0]
[null," e.     Type of Contract",0]
[null," f.     Work Phases",0]
[null," g.     Use of premises",0]
[null," h.     Work restrictions",0]
[null," i.     Pricing and Measurement Issues",0]
[]
[null,"01310  Project Management and Coordination"]
[null," a.     Coordination",0]
[null," b.     Administrative and supervision personnel",0]
[null," c.     Project meetings",0]
[null," d.     Design Queries (DQs)",0]
[]
[null,"01312  Coordination Drawings / Composite Drawings",0]
[]
[null,"01320  Construction Progress Documentation"]
[null," a.     Submittals Schedule",0]
[null," b.     Construction Schedule",0]
[null," c.     Contractor's Construction Schedule",0]
[null," d.     Daily construction reports",0]
[null," e.     Materials location reports",0]
[null," f.      Field conditions reports",0]
[null," g.     Special reports",0]
[]
[null,"01322  Photographic Documentation"]
[null," a.     Periodic construction photographs",0]
[null," b.     Final Completion construction photographs",0]
[]
[]
[null,"01330  Submittal Procedures",0]
[]
[null,"To Collection  US$",{"$f":"SUM(C64:C102)","v":0}]
[]
[]
[null,"SPECIFICATIONS (CONT'D)"]
[]
["A","The Contractor shall comply with all the requirements and obligations contained in the Specifications and in particular the requirements of Division 1 as follows:-"]
[]
[null,"01500  Temporary Facilities and Controls"]
[]
[null,"  i)    Temporary Facilities:-"]
[null,"       a.     Field Offices",0]
[null,"       b.     Contractor's site Offices",0]
[null,"       c.     Engineer's and Employer's Site Offices",0]
[null,"       d.     Computer Server and Software",0]
[null,"       e.     Storage and Fabrication Sheds",0]
[]
[null,"  ii)    Equipment:-"]
[null,"       a.     Fire Extinguishers",0]
[null,"       b.     HVAC Equipment",0]
[]
[null,"  iii)    Temporary Utility Installation:-"]
[null,"       a.     Sewers and Drainage",0]
[null,"       b.     Water Service",0]
[null,"       c.     Sanitary Facilities",0]
[null,"       d.     Heating and Cooling",0]
[null,"       e.     Ventilation and Humidity Control",0]
[null,"       f.     Electric Power Service",0]
[null,"       g.      Lighting",0]
[null,"       h.     Telephone Service (if needed)",0]
[]
[null,"  iv)    Support FacilitiesInstallation:-"]
[null,"       a.     Temporary Roads and paved Areas",0]
[null,"       b.     Traffic Controls",0]
[null,"       c.     Parking",0]
[null,"       d.      Dewatering facilities and Drains",0]
[null,"       e.      Waste Disposal Facilities",0]
[]
[]
[null,"To Collection  US$",{"$f":"SUM(C112:C139)","v":0}]
[]
[]
[null,"SPECIFICATIONS (CONT'D)"]
[]
["A","The Contractor shall comply with all the requirements and obligations contained in the Specifications and in particular the requirements of Division 1 as follows:-"]
[null,"  v)    Security and Protection FacilitiesInstallation:-"]
[null,"       a.      Environmental Protection",0]
[null,"       b.      Temporary Erosion and Sedimentation Control",0]
[null,"       c.      Storm Water Control",0]
[null,"       d.      Tree and Plant Protection",0]
[null,"       e.      Pest Control",0]
[null,"       f.      Site Enclosure Fence",0]
[null,"       g.      Project Identification",0]
[null,"       g.      Security Enclosure and Lckup",0]
[null,"       h.      Barricades, Warning Signs, Safety Signs and Lights",0]
[null,"       i.      Covered Walkways",0]
[null,"       j.      Temporary Enclosures",0]
[null,"       k.      Temporary Partitions",0]
[null,"       l.      Temporary Fire Protection",0]
[]
[null,"  vi)    Operation, Termination and Removal",0]
[]
[]
["B","The Contractor shall comply with all the requirements and obligations contained in the Specifications and in particular the requirements of Division 1 (Cont'd)"]
[]
[null,"01700  Execution Requirements:-"]
[null," a.     Construction layout",0]
[null," b.     Field engineering and surveying",0]
[null," c.     General installation of products",0]
[null," d.     Coordination of Employer-installed products",0]
[null," e.     Progress cleaning",0]
[null," f.     Starting and adjusting",0]
[null," g.     Protection of installed construction",0]
[null," h.     Correction of the work",0]
[]
[null,"01731  Cutting and Patching",0]
[]
[null,"01770  Closeout Procedures:-"]
[null," a.     Inspection procedures",0]
[null," b.     Warranties",0]
[null," c.     Final cleaning",0]
[]
[null,"To Collection  US$",{"$f":"SUM(C149:C183)","v":0}]
[]
[]
[null,"SPECIFICATIONS (CONT'D)"]
[]
["A","The Contractor shall comply with all the requirements and obligations contained in the Specifications and in particular the requirements of Division 1 (Cont'd)"]
[null,"01781  Project Record Documents:-"]
[null," a.     Record drawings",0]
[null," b.     Record specifications",0]
[null," c.     Record product data",0]
[]
[null,"01782  Operation and maintenance Data:-"]
[null," a.      Operation and maintenance documentation directory",0]
[null," b.      Emergency manuals",0]
[null," c.      Operation manuals for systems, subsystems, and \n          equipment",0]
[null," d.      Maintenance manuals for the care and maintenance of\n          products, materials, and finishes systems and equipment",0]
[]
[null,"01810  General Commissioning Requirements",0]
[]
[null,"01815  HVAC Commissioning Requirements",0]
[]
[null,"01820  Demonstration and Training:-"]
[null," a.      Demonstration of operation of systems, subsystems, and equipment",0]
[null," b.      Training in operation and maintenance of systems, \n          subsystems, and equipment",0]
[null," c.      Demonstration and training videotapes",0]
[]
[null,"General Submittals"]
[]
["B","The Contractor shall allow herein for the following called for in the specifications and in any other document to the approval of the Engineer:-"]
[null,"a)  Tests",0]
[null,"b)  Mock-ups",0]
[null,"c)  Shop drawings",0]
[null,"d)  As-built drawings"]
[null,"e)  Construction drawings",0]
[null,"f)  Testing and commissioning",0]
[null,"g)  Operating and maintenance manuals",0]
[null,"h)  Training of Employer's personnel",0]
[]
[null,"To Collection  US$",{"$f":"SUM(C191:C221)","v":0}]
[]
[]
[null,"SPECIFICATIONS (CONT'D)"]
[]
[null,"Other Obligations"]
[]
["A","The Contractor shall allow herein for all the following items as described in the General Requirements and the \"POMI\" Method of Measurement and not included elsewhere:-"]
[null,"a)  Contractor's administrative arrangements",0]
[null,"b)  Construction plant",0]
[null,"c)  Temporary works",0]
[null,"d)  Sundry items",0]
[]
["B","Other items in the Specifications which the Contractor considers to be of value and for which he has not included elsewhere and wishes to include in his Tender (list below):-"]
[]
[null,"…………………………………………………………………………….",0]
[]
[null,"…………………………………………………………………………….",0]
[]
[null,"…………………………………………………………………………….",0]
[]
[null,"…………………………………………………………………………….",0]
[]
[null,"…………………………………………………………………………….",0]
[]
[null,"…………………………………………………………………………….",0]
[]
[null,"GENERAL OBLIGATIONS"]
[]
[null,"Encroachment on Surrounding Land or Properties"]
[]
["C","Uninterrupted, continuous and unimpeded access shall be maintained along any temporary roads adjacent to the Site at all times and the Contractor must under no circumstances whatsoever use road footpaths for the storage of materials, waste, debris or any item connected with the Site.",0]
[]
[null,"To Collection  US$",{"$f":"SUM(C231:C254)","v":0}]
[]
[]
[null,"GENERAL OBLIGATIONS (CONT'D)"]
[]
[null,"Adjacent Properties"]
[]
["A","If at any time the Contractor requires access  to, over or under any land or properties for the execution of the Works and which are not owned by the Employer, then the Contractor must obtain  written permission from the Owners and/or Occupiers of such land or properties. The Contractor shall be responsible for undertaking all negotiations with Owners and/or Occupiers of adjacent land or properties to obtain such written permission for, but which is not limited to, access for personnel, plant, jibs of cranes, scaffolding or other temporary works, safety reasons or any other legitimate reason where access is required by the Contractor for the due and proper completion of the Works.",0]
[]
["B","Further the Contractor shall be responsible for the payment of all fees or charges which may be payable  as a result of obtaining permission to gain access to adjacent land or properties and shall settle all fees and charges entirely at his own expense.  The Contractor shall keep the Employer fully informed of his progress in obtaining permission(s) at all times, but the Employer will not accept any responsibility or claims for payment in the event that the Contractor is unable to obtain the permission(s) he requires.",0]
[]
["C","The Contractor shall take all reasonable precautions to prevent damage to adjoining property and any damage caused shall be repaired to the satisfaction of the Employer and Owner of the property at the Contractor's own expense.",0]
[]
["D","The Contractor shall advise Owners and Occupants of adjoining properties of the dates and if possible the time and the duration of any work to be executed which may affect them. ",0]
[]
[]
[]
[null,"To Collection   US$",{"$f":"SUM(C263:C271)","v":0}]
[]
[]
[null,"GENERAL OBLIGATIONS (CONT'D)"]
[null,"Protection"]
[]
["A","The Contractor shall take all reasonable and proper steps for the protection of all places on or about the Works which may be dangerous to his workmen or any other persons or to traffic.  The Contractor shall provide and maintain signs, red warning lamps, signals and barricades as necessary in such places.",0]
[]
[null,"Safety, Health and Welfare of Workpeople"]
[]
["B","The Contractor and all persons employed by him on the site in or about the execution of the Works shall comply in all respects with the provisions of all Acts, Orders, Laws and Regulations concerning the safety, health or welfare of persons working on the Site. The Engineer may require the immediate removal from the Works of any person who in the opinion of the Engineer fails properly to observe the provisions of this Clause.",0]
[]
[null,"Accidents"]
["C","The Contractor shall promptly report to the Engineer any accident whatsoever and he shall make the necessary arrangements to obtain medical help and transport to a hospital.  A full statement, giving full details of the accident and statements of witnesses, shall be submitted to the Engineer.",0]
[]
["D","If any claim is made by anyone against the Contractor or any Sub-Contractor, the Contractor shall promptly report the facts in writing to the Engineer giving full details of the claim.",0]
[]
[null,"Reports"]
[]
["E","The Contractor shall submit daily reports, monthly reports, and any other reports as required in the Conditions of Contract and in the Specifications.",0]
[]
[null,"To Collection   US$",{"$f":"SUM(C279:C292)","v":0}]
[]
[]
[null,"GENERAL OBLIGATIONS (CONT'D)"]
[]
[null,"Copyright and Advertising"]
[]
["A","Unless the Employer gives his express permission in writing the Contractor:-"]
[]
["a)","Accepts and understands that all documents generated for the purpose of this Contract are protected by the laws of Copyright and must under no circumstances be used for any reason other than for the purposes of this Contract.",0]
[]
["b)","Is not permitted to use photographs, drawings, paintings, sketches, models or any other copy of the Works for advertising purposes, brochures and the like.",0]
[]
[null,"Assistance to the Employer and Engineer"]
[]
["B","The Contractor shall provide such labour and materials as the Engineer may require to assist him in carrying out tests and checks on materials and workmanship and setting out and measurements of the Works. Safety helmets, boots and measuring tapes as selected by the Engineer shall be supplied by the Contractor for the sole use of the Employer, the Engineer and his staff.",0]
[]
[null,"Coordination with Authorities"]
[]
["C","The Contractor shall coordinate, pay fees regarding connections of utilities, connections to infrastructure, access roads, fencing, and shall report all these matters to the Engineer.",0]
[]
["D","The Contractor shall allow for giving access to workmen employed by the Local Authorities and providing them with attendance as required",0]
[]
[null,"To Collection   US$",{"$f":"SUM(C300:C315)","v":0}]
[]
[]
[null,"SPECIFIC REQUIREMENTS"]
[null,"Tenderers are referred to the \"Instruction of Tenderers\" and are to price accordingly here"]
[]
["A","Allow the net Sum for the appointment of a Professional Design Consulting Firm and Specialist Consultants to undertake the completion of the architectural, structural, electrical and mechanical design for this Contract",0]
[]
["B","Making good any surfaces and/or equipment disturbed by the works",0]
[]
["C","Water for the Works shall be provided by the Contractor. The Contractor shall make all necessary provisions for transporting water to the site including connections, pumps, and pipe work and storage facilities if necessary.",0]
[]
["D","Electricity shall be provided by the Contractor and the cost of providing generators, fuel, maintenance, etc. and all other necessary facilities shall be borne by the Contractor. If mains power is available the Contractor shall pay all charges incurred.",0]
[]
[]
[null,"To Collection   US$",{"$f":"SUM(C323:C330)","v":0}]
[]
[]
[null,"COLLECTION"]
[null,"Page No. 1",{"$f":"C26","v":0}]
[]
[null,"Page No. 2",{"$f":"C35","v":0}]
[]
[null,"Page No. 3",{"$f":"C62","v":0}]
[]
[null,"Page No. 4",{"$f":"C104","v":0}]
[]
[null,"Page No. 5",{"$f":"C142","v":0}]
[]
[null,"Page No. 6",{"$f":"C185","v":0}]
[]
[null,"Page No. 7",{"$f":"C223","v":0}]
[]
[null,"Page No. 8",{"$f":"C256","v":0}]
[]
[null,"Page No. 9",{"$f":"C273","v":0}]
[]
[null,"Page No. 10",{"$f":"C294","v":0}]
[]
[null,"Page No. 11",{"$f":"C317","v":0}]
[]
[null,"Page No. 12",{"$f":"C332","v":0}]
[]
[null,"DIVISION 01 - GENERAL REQUIREMENTS"]
[]
[null,"Total Carried to  Summary                                                                           US$",{"$f":"SUM(C336:C358)","v":0}]

{"sheet":"Summary","index":1,"n_rows":23,"n_cols":5,"rows_kept":23,"cut":false,"hidden":false,"merged":[[4,0,4,4]]}
[]
[]
[]
[]
["SUMMARY"]
[]
[]
[]
[{"$nulls":4},"US$"]
[]
[]
[null,"Division 1","General Requirements",null,{"$f":"'DIV 01'!C362","v":0}]
[]
[]
[]
[]
[]
[]
["TOTAL ",null,null,"US$",{"$f":"SUM(E12:E13)","v":0}]
[]
["10% VAT",null,null,"US$",{"$f":"E19*0.1","v":0}]
[]
["GRAND TOTAL",null,null,"US$",{"$f":"E19+E21","v":0}]